[Event "Early-Titled-Tuesday-Blitz-February-06-2024"]
[Site "Chess.com"]
[Date "2024.02.06"]
[Round "8"]
[White "VitaliyChayka"]
[Black "zverr1"]
[Result "0-1"]
[WhiteElo "2410"]
[BlackElo "2561"]
[TimeControl "180+1"]
[EndTime "9:30:53 PST"]
[Termination "zverr1 won by checkmate"]

1. d4 {[%clk 0:03:00.9]} 1... Nf6 {[%clk 0:02:57.9]} 2. Bf4 {[%clk 0:03:01.5]}
2... g6 {[%clk 0:02:57.2]} 3. e3 {[%clk 0:03:02.1]} 3... Bg7 {[%clk 0:02:55.1]}
4. h3 {[%clk 0:03:02.8]} 4... c5 {[%clk 0:02:55.6]} 5. c3 {[%clk 0:03:02.8]}
5... b6 {[%clk 0:02:56]} 6. Nf3 {[%clk 0:03:02.5]} 6... Bb7 {[%clk 0:02:56.6]}
7. Nbd2 {[%clk 0:03:03.3]} 7... O-O {[%clk 0:02:56.7]} 8. Be2 {[%clk 0:03:04.1]}
8... d5 {[%clk 0:02:57.4]} 9. O-O {[%clk 0:03:04.6]} 9... Nc6 {[%clk 0:02:58.2]}
10. a4 {[%clk 0:03:03.1]} 10... Nd7 {[%clk 0:02:58.4]} 11. a5 {[%clk 0:02:54.3]}
11... Nxa5 {[%clk 0:02:23.1]} 12. b4 {[%clk 0:02:54.7]} 12... Nc6 {[%clk
0:02:04.8]} 13. b5 {[%clk 0:02:54.4]} 13... Na5 {[%clk 0:02:02.5]} 14. Nb3
{[%clk 0:02:42.1]} 14... Nc4 {[%clk 0:01:53.5]} 15. Qc2 {[%clk 0:02:11]} 15...
e5 {[%clk 0:01:37]} 16. Bg5 {[%clk 0:02:01.9]} 16... f6 {[%clk 0:01:33.8]} 17.
Bh4 {[%clk 0:02:02.6]} 17... e4 {[%clk 0:01:27.5]} 18. Nfd2 {[%clk 0:02:02.2]}
18... Nxd2 {[%clk 0:01:25.4]} 19. Nxd2 {[%clk 0:01:59.1]} 19... c4 {[%clk
0:01:21.9]} 20. Ra4 {[%clk 0:01:53.8]} 20... a6 {[%clk 0:01:10.6]} 21. bxa6
{[%clk 0:01:54.7]} 21... Rxa6 {[%clk 0:01:06.5]} 22. Rxa6 {[%clk 0:01:52.9]}
22... Bxa6 {[%clk 0:01:07.4]} 23. Ra1 {[%clk 0:01:53.2]} 23... Bb5 {[%clk
0:01:00]} 24. Ra7 {[%clk 0:01:49.3]} 24... Rf7 {[%clk 0:00:53]} 25. Qa2 {[%clk
0:01:47.7]} 25... Nf8 {[%clk 0:00:52.8]} 26. Ra8 {[%clk 0:01:46.5]} 26... Qd7
{[%clk 0:00:48.2]} 27. Bg3 {[%clk 0:01:42.5]} 27... f5 {[%clk 0:00:32.4]} 28.
Rb8 {[%clk 0:01:32.6]} 28... Rf6 {[%clk 0:00:32.4]} 29. Qa8 {[%clk 0:01:27.6]}
29... Re6 {[%clk 0:00:26]} 30. Rd8 {[%clk 0:01:20]} 30... Bc6 {[%clk 0:00:20.6]}
31. Qb8 {[%clk 0:00:53.6]} 31... Qb7 {[%clk 0:00:20.5]} 32. Nxc4 {[%clk
0:00:45.5]} 32... Qxb8 {[%clk 0:00:14.7]} 33. Rxb8 {[%clk 0:00:45.3]} 33... Bb5
{[%clk 0:00:12.8]} 34. Nxb6 {[%clk 0:00:32.2]} 34... Bxe2 {[%clk 0:00:12.5]} 35.
Nxd5 {[%clk 0:00:33.1]} 35... Bc4 {[%clk 0:00:11.1]} 36. Nb6 {[%clk 0:00:31.7]}
36... Ba2 {[%clk 0:00:08.9]} 37. c4 {[%clk 0:00:32.1]} 37... Rxb6 {[%clk
0:00:05.3]} 38. Rxb6 {[%clk 0:00:31.7]} 38... Bxc4 {[%clk 0:00:06]} 39. Rb8
{[%clk 0:00:29.8]} 39... Kf7 {[%clk 0:00:06.1]} 40. Rb7+ {[%clk 0:00:30]} 40...
Kg8 {[%clk 0:00:05.3]} 41. Rb8 {[%clk 0:00:30.6]} 41... Bd5 {[%clk 0:00:04.8]}
42. Bd6 {[%clk 0:00:29.9]} 42... Kf7 {[%clk 0:00:04.3]} 43. Ba3 {[%clk
0:00:28.3]} 43... Nd7 {[%clk 0:00:04.1]} 44. Rb5 {[%clk 0:00:28.1]} 44... Ke6
{[%clk 0:00:03.9]} 45. Ra5 {[%clk 0:00:27.8]} 45... Bf8 {[%clk 0:00:02.7]} 46.
Ra6+ {[%clk 0:00:27.5]} 46... Kf7 {[%clk 0:00:02.7]} 47. Bxf8 {[%clk 0:00:24.7]}
47... Nxf8 {[%clk 0:00:03.6]} 48. Ra7+ {[%clk 0:00:23.9]} 48... Kf6 {[%clk
0:00:02.6]} 49. g3 {[%clk 0:00:22.5]} 49... h6 {[%clk 0:00:01.9]} 50. h4 {[%clk
0:00:22.9]} 50... Ne6 {[%clk 0:00:02.6]} 51. Ra6 {[%clk 0:00:22.7]} 51... Bc4
{[%clk 0:00:02.8]} 52. Rc6 {[%clk 0:00:22.3]} 52... Bb3 {[%clk 0:00:02.9]} 53.
Rb6 {[%clk 0:00:22.6]} 53... Ba2 {[%clk 0:00:03.4]} 54. Kf1 {[%clk 0:00:22.1]}
54... g5 {[%clk 0:00:03.3]} 55. hxg5+ {[%clk 0:00:21.9]} 55... hxg5 {[%clk
0:00:04.2]} 56. Ke1 {[%clk 0:00:21.9]} 56... g4 {[%clk 0:00:04.7]} 57. Rb5
{[%clk 0:00:21.4]} 57... Ng7 {[%clk 0:00:03.1]} 58. Re5 {[%clk 0:00:21.3]} 58...
Be6 {[%clk 0:00:02.8]} 59. Kd2 {[%clk 0:00:20.8]} 59... Bd7 {[%clk 0:00:02.2]}
60. Kc3 {[%clk 0:00:20.4]} 60... Ne8 {[%clk 0:00:02.6]} 61. Ra5 {[%clk
0:00:20.8]} 61... Nd6 {[%clk 0:00:02.5]} 62. Ra6 {[%clk 0:00:21.4]} 62... Ke6
{[%clk 0:00:03.2]} 63. Kb4 {[%clk 0:00:21.5]} 63... Kd5 {[%clk 0:00:03]} 64.
Ra5+ {[%clk 0:00:20.9]} 64... Ke6 {[%clk 0:00:03.4]} 65. Re5+ {[%clk 0:00:21.6]}
65... Kf6 {[%clk 0:00:04.1]} 66. Ra5 {[%clk 0:00:22.1]} 66... Ke6 {[%clk
0:00:03.4]} 67. Ra8 {[%clk 0:00:21.5]} 67... Bc6 {[%clk 0:00:03.5]} 68. Rh8
{[%clk 0:00:21.4]} 68... Nf7 {[%clk 0:00:01.8]} 69. Rh7 {[%clk 0:00:18.8]} 69...
Kf6 {[%clk 0:00:02]} 70. Kc5 {[%clk 0:00:18.6]} 70... Ba8 {[%clk 0:00:01.9]} 71.
d5 {[%clk 0:00:18.2]} 71... Kg6 {[%clk 0:00:02.4]} 72. Rh1 {[%clk 0:00:17.4]}
72... Ne5 {[%clk 0:00:02.2]} 73. Ra1 {[%clk 0:00:14.6]} 73... Nd3+ {[%clk
0:00:01.4]} 74. Kd6 {[%clk 0:00:12.9]} 74... Bxd5 {[%clk 0:00:01.6]} 75. Kxd5
{[%clk 0:00:13]} 75... Nxf2 {[%clk 0:00:02.5]} 76. Ke5 {[%clk 0:00:11.5]} 76...
Nd3+ {[%clk 0:00:02.3]} 77. Ke6 {[%clk 0:00:10.1]} 77... Nc5+ {[%clk 0:00:02.3]}
78. Kd5 {[%clk 0:00:09.7]} 78... Nd3 {[%clk 0:00:02.3]} 79. Ra8 {[%clk
0:00:07.9]} 79... Kf6 {[%clk 0:00:02.5]} 80. Rf8+ {[%clk 0:00:07.7]} 80... Kg6
{[%clk 0:00:01.8]} 81. Ke6 {[%clk 0:00:07.1]} 81... Nc5+ {[%clk 0:00:02.5]} 82.
Ke5 {[%clk 0:00:07.1]} 82... Nd7+ {[%clk 0:00:03.1]} 83. Kf4 {[%clk 0:00:04.1]}
83... Nxf8 {[%clk 0:00:04]} 84. Ke5 {[%clk 0:00:04.7]} 84... Nd7+ {[%clk
0:00:02.7]} 85. Kf4 {[%clk 0:00:05.6]} 85... Nc5 {[%clk 0:00:03]} 86. Ke5 {[%clk
0:00:05.9]} 86... Nb3 {[%clk 0:00:03.9]} 87. Kf4 {[%clk 0:00:05.7]} 87... Nc1
{[%clk 0:00:04.1]} 88. Ke5 {[%clk 0:00:05.9]} 88... Kg5 {[%clk 0:00:02.7]} 89.
Kd4 {[%clk 0:00:05.7]} 89... Kf6 {[%clk 0:00:01.9]} 90. Kc3 {[%clk 0:00:05.8]}
90... Ne2+ {[%clk 0:00:01.2]} 91. Kd2 {[%clk 0:00:06.1]} 91... Nxg3 {[%clk
0:00:02.1]} 92. Ke1 {[%clk 0:00:06.7]} 92... Nh5 {[%clk 0:00:03]} 93. Kf2 {[%clk
0:00:07.6]} 93... Ke5 {[%clk 0:00:03.9]} 94. Kg2 {[%clk 0:00:08.2]} 94... Nf6
{[%clk 0:00:04.8]} 95. Kf2 {[%clk 0:00:08.9]} 95... Nd5 {[%clk 0:00:05.7]} 96.
Kg2 {[%clk 0:00:09.5]} 96... Nxe3+ {[%clk 0:00:06.6]} 97. Kf2 {[%clk 0:00:10.4]}
97... f4 {[%clk 0:00:06.6]} 98. Kg1 {[%clk 0:00:10.2]} 98... Kd4 {[%clk
0:00:07.2]} 99. Kf2 {[%clk 0:00:11.1]} 99... Kd3 {[%clk 0:00:08.1]} 100. Kg1
{[%clk 0:00:11.7]} 100... Nd5 {[%clk 0:00:09]} 101. Kf2 {[%clk 0:00:12.1]}
101... Nb6 {[%clk 0:00:09.9]} 102. Kg2 {[%clk 0:00:13]} 102... Na8 {[%clk
0:00:10.8]} 103. Kh2 {[%clk 0:00:13.7]} 103... e3 {[%clk 0:00:11.7]} 104. Kg2
{[%clk 0:00:14.6]} 104... f3+ {[%clk 0:00:12]} 105. Kh2 {[%clk 0:00:15.5]}
105... e2 {[%clk 0:00:12.6]} 106. Kg3 {[%clk 0:00:16.4]} 106... e1=Q+ {[%clk
0:00:12.8]} 107. Kh2 {[%clk 0:00:16.7]} 107... Qf2+ {[%clk 0:00:12.6]} 108. Kh1
{[%clk 0:00:16.5]} 108... Qg2# {[%clk 0:00:13.5]} 0-1

[Event "Early-Titled-Tuesday-Blitz-February-06-2024"]
[Site "Chess.com"]
[Date "2024.02.06"]
[Round "9"]
[White "HeroWilczek"]
[Black "vladgoncharov"]
[Result "0-1"]
[WhiteElo "2481"]
[BlackElo "2628"]
[TimeControl "180+1"]
[EndTime "9:39:24 PST"]
[Termination "vladgoncharov won by resignation"]

1. e4 {[%clk 0:02:57.4]} 1... e6 {[%clk 0:02:59.8]} 2. d3 {[%clk 0:02:56.8]}
2... c5 {[%clk 0:02:58.2]} 3. g3 {[%clk 0:02:55]} 3... Nc6 {[%clk 0:02:57.5]} 4.
Bg2 {[%clk 0:02:55.6]} 4... g6 {[%clk 0:02:57.9]} 5. Ne2 {[%clk 0:02:55.8]} 5...
Bg7 {[%clk 0:02:58]} 6. O-O {[%clk 0:02:56.4]} 6... Nge7 {[%clk 0:02:57.1]} 7.
Nbc3 {[%clk 0:02:56.4]} 7... d6 {[%clk 0:02:56.2]} 8. Be3 {[%clk 0:02:56.6]}
8... Nd4 {[%clk 0:02:55.4]} 9. f4 {[%clk 0:02:49.9]} 9... O-O {[%clk 0:02:50.1]}
10. Qd2 {[%clk 0:02:28.6]} 10... Rb8 {[%clk 0:02:47.6]} 11. a4 {[%clk
0:02:28.2]} 11... a6 {[%clk 0:02:45.3]} 12. a5 {[%clk 0:02:26]} 12... Nec6
{[%clk 0:02:42.6]} 13. Nd1 {[%clk 0:02:26.6]} 13... b5 {[%clk 0:02:34.7]} 14.
axb6 {[%clk 0:02:24.3]} 14... Rxb6 {[%clk 0:02:34.2]} 15. c3 {[%clk 0:02:21.6]}
15... Nb3 {[%clk 0:02:34]} 16. Qc2 {[%clk 0:02:11.2]} 16... Nxa1 {[%clk
0:02:33.8]} 17. Qa4 {[%clk 0:02:11.9]} 17... Nb3 {[%clk 0:02:30.6]} 0-1

[Event "Early-Titled-Tuesday-Blitz-February-06-2024"]
[Site "Chess.com"]
[Date "2024.02.06"]
[Round "9"]
[White "manitodeplomo"]
[Black "CADMartin"]
[Result "1-0"]
[WhiteElo "2603"]
[BlackElo "2472"]
[TimeControl "180+1"]
[EndTime "9:39:53 PST"]
[Termination "manitodeplomo won by resignation"]

1. d4 {[%clk 0:03:00.9]} 1... Nf6 {[%clk 0:02:55.3]} 2. c4 {[%clk 0:03:00.1]}
2... e6 {[%clk 0:02:54.5]} 3. Nf3 {[%clk 0:02:59.7]} 3... c5 {[%clk 0:02:52.5]}
4. d5 {[%clk 0:02:59.2]} 4... exd5 {[%clk 0:02:49]} 5. cxd5 {[%clk 0:03:00.1]}
5... d6 {[%clk 0:02:49]} 6. Nc3 {[%clk 0:03:00.6]} 6... g6 {[%clk 0:02:48.4]} 7.
e4 {[%clk 0:02:59.5]} 7... Bg7 {[%clk 0:02:48.6]} 8. h3 {[%clk 0:02:58.6]} 8...
O-O {[%clk 0:02:47.2]} 9. Bd3 {[%clk 0:02:58.1]} 9... b5 {[%clk 0:02:44.7]} 10.
Nxb5 {[%clk 0:02:57.7]} 10... Nxe4 {[%clk 0:02:40.3]} 11. Bxe4 {[%clk
0:02:58.6]} 11... Qa5+ {[%clk 0:02:40]} 12. Nc3 {[%clk 0:02:57.4]} 12... Re8
{[%clk 0:02:33]} 13. O-O {[%clk 0:02:54]} 13... Bxc3 {[%clk 0:02:31.6]} 14. bxc3
{[%clk 0:02:54.9]} 14... Rxe4 {[%clk 0:02:31]} 15. Ng5 {[%clk 0:02:55.4]} 15...
Re8 {[%clk 0:02:19.7]} 16. Qf3 {[%clk 0:02:55]} 16... Qc7 {[%clk 0:02:19.4]} 17.
c4 {[%clk 0:02:55.2]} 17... Bf5 {[%clk 0:02:13.1]} 18. Bb2 {[%clk 0:02:49.5]}
18... h6 {[%clk 0:02:07.9]} 19. Qc3 {[%clk 0:02:46.3]} 19... f6 {[%clk
0:01:57.6]} 20. Qxf6 {[%clk 0:02:42.3]} 1-0

[Event "Early-Titled-Tuesday-Blitz-February-06-2024"]
[Site "Chess.com"]
[Date "2024.02.06"]
[Round "9"]
[White "SHIVACalypso"]
[Black "mertfelin"]
[Result "1-0"]
[WhiteElo "2509"]
[BlackElo "2282"]
[TimeControl "180+1"]
[EndTime "9:39:56 PST"]
[Termination "SHIVACalypso won by resignation"]

1. Nf3 {[%clk 0:03:00.9]} 1... d5 {[%clk 0:03:00.2]} 2. c4 {[%clk 0:03:01.4]}
2... e6 {[%clk 0:03:00.6]} 3. g3 {[%clk 0:03:00.7]} 3... Nf6 {[%clk 0:03:00.8]}
4. Bg2 {[%clk 0:03:01.3]} 4... Be7 {[%clk 0:03:01.5]} 5. O-O {[%clk 0:03:02]}
5... O-O {[%clk 0:03:02.2]} 6. b3 {[%clk 0:03:01.7]} 6... b6 {[%clk 0:02:57.5]}
7. Bb2 {[%clk 0:03:02]} 7... Bb7 {[%clk 0:02:58]} 8. e3 {[%clk 0:03:02.3]} 8...
c5 {[%clk 0:02:56.3]} 9. d4 {[%clk 0:03:02.5]} 9... Nbd7 {[%clk 0:02:52.1]} 10.
Nbd2 {[%clk 0:03:02.5]} 10... Rc8 {[%clk 0:02:50.5]} 11. Rc1 {[%clk 0:03:03.1]}
11... Ne4 {[%clk 0:02:48.5]} 12. Qe2 {[%clk 0:03:03.3]} 12... Ndf6 {[%clk
0:02:45.1]} 13. Rfd1 {[%clk 0:03:02.8]} 13... Qe8 {[%clk 0:02:43.5]} 14. Nxe4
{[%clk 0:03:02.9]} 14... dxe4 {[%clk 0:02:40.8]} 15. Ne5 {[%clk 0:03:02]} 15...
a5 {[%clk 0:02:28.9]} 16. Ng4 {[%clk 0:02:53.5]} 16... Nxg4 {[%clk 0:02:16.3]}
17. Qxg4 {[%clk 0:02:54.4]} 17... Bf6 {[%clk 0:02:06.1]} 18. Bxe4 {[%clk
0:02:47.2]} 18... Bxe4 {[%clk 0:02:05.6]} 19. Qxe4 {[%clk 0:02:48.1]} 19... cxd4
{[%clk 0:02:04.3]} 20. Bxd4 {[%clk 0:02:47.4]} 20... Bd8 {[%clk 0:01:44.3]} 21.
Qb7 {[%clk 0:02:38.7]} 21... Rb8 {[%clk 0:01:43.4]} 22. Qxb8 {[%clk 0:02:37.4]}
1-0

[Event "Early-Titled-Tuesday-Blitz-February-06-2024"]
[Site "Chess.com"]
[Date "2024.02.06"]
[Round "9"]
[White "SnekkerAndersen"]
[Black "Msb2"]
[Result "0-1"]
[WhiteElo "2639"]
[BlackElo "2981"]
[TimeControl "180+1"]
[EndTime "9:40:05 PST"]
[Termination "Msb2 won by resignation"]

1. d4 {[%clk 0:03:00.9]} 1... d5 {[%clk 0:03:00.3]} 2. c4 {[%clk 0:03:00.2]}
2... e6 {[%clk 0:03:00.9]} 3. Nc3 {[%clk 0:03:00.1]} 3... Bb4 {[%clk 0:03:01.3]}
4. Nf3 {[%clk 0:02:55.3]} 4... Nf6 {[%clk 0:03:01.5]} 5. cxd5 {[%clk 0:02:55.4]}
5... exd5 {[%clk 0:03:02.4]} 6. Bg5 {[%clk 0:02:48.5]} 6... O-O {[%clk
0:03:02.7]} 7. e3 {[%clk 0:02:48.4]} 7... h6 {[%clk 0:03:02.6]} 8. Bh4 {[%clk
0:02:48.5]} 8... Bf5 {[%clk 0:03:02.9]} 9. Bd3 {[%clk 0:02:47]} 9... Bxd3 {[%clk
0:03:03.3]} 10. Qxd3 {[%clk 0:02:47.9]} 10... Nbd7 {[%clk 0:03:03.9]} 11. O-O
{[%clk 0:02:47.6]} 11... c6 {[%clk 0:03:04.4]} 12. a3 {[%clk 0:02:45.7]} 12...
Bd6 {[%clk 0:03:02.9]} 13. b4 {[%clk 0:02:45.9]} 13... a6 {[%clk 0:03:02.3]} 14.
Rab1 {[%clk 0:02:45.7]} 14... Re8 {[%clk 0:03:01]} 15. Bg3 {[%clk 0:02:45.8]}
15... Bxg3 {[%clk 0:03:00.1]} 16. hxg3 {[%clk 0:02:46.7]} 16... Ne4 {[%clk
0:03:00.6]} 17. Nd2 {[%clk 0:02:46.9]} 17... Nxd2 {[%clk 0:03:00.1]} 18. Qxd2
{[%clk 0:02:47.1]} 18... Nb6 {[%clk 0:03:00.7]} 19. Qd3 {[%clk 0:02:44.9]} 19...
Nc4 {[%clk 0:03:01.2]} 20. Ne2 {[%clk 0:02:43.5]} 20... Qd6 {[%clk 0:02:54.1]}
21. Nf4 {[%clk 0:02:33.7]} 21... b5 {[%clk 0:02:50.1]} 22. Rfe1 {[%clk
0:02:25.8]} 22... a5 {[%clk 0:02:49.7]} 23. e4 {[%clk 0:02:26.1]} 23... dxe4
{[%clk 0:02:45]} 24. Rxe4 {[%clk 0:02:25.2]} 24... Rxe4 {[%clk 0:02:45.9]} 25.
Qxe4 {[%clk 0:02:26.1]} 25... Nd2 {[%clk 0:02:45]} 26. Qc2 {[%clk 0:02:18.2]}
26... Nxb1 {[%clk 0:02:45]} 27. Qxb1 {[%clk 0:02:19.1]} 27... Qxd4 {[%clk
0:02:43.6]} 28. Qc2 {[%clk 0:02:16.7]} 28... Qc4 {[%clk 0:02:33.7]} 29. Qb2
{[%clk 0:02:16.9]} 29... axb4 {[%clk 0:02:32.6]} 30. axb4 {[%clk 0:02:17.8]}
30... Rd8 {[%clk 0:02:27.6]} 31. Nh5 {[%clk 0:02:17.6]} 31... Qd4 {[%clk
0:02:21.8]} 32. Qa2 {[%clk 0:02:11.6]} 32... Qd1+ {[%clk 0:02:21.1]} 0-1

[Event "Early-Titled-Tuesday-Blitz-February-06-2024"]
[Site "Chess.com"]
[Date "2024.02.06"]
[Round "9"]
[White "Caroexpert"]
[Black "Drags95"]
[Result "0-1"]
[WhiteElo "2572"]
[BlackElo "2831"]
[TimeControl "180+1"]
[EndTime "9:40:13 PST"]
[Termination "Drags95 won by resignation"]

1. d4 {[%clk 0:03:00.9]} 1... Nf6 {[%clk 0:02:57.7]} 2. Nf3 {[%clk 0:02:56.2]}
2... e6 {[%clk 0:02:55.4]} 3. Bf4 {[%clk 0:02:55.2]} 3... d5 {[%clk 0:02:54.6]}
4. e3 {[%clk 0:02:55.3]} 4... c5 {[%clk 0:02:54.3]} 5. Nbd2 {[%clk 0:02:55.4]}
5... Bd6 {[%clk 0:02:53.9]} 6. c3 {[%clk 0:02:43]} 6... O-O {[%clk 0:02:54.2]}
7. Bd3 {[%clk 0:02:37.6]} 7... Qc7 {[%clk 0:02:54.5]} 8. Bxd6 {[%clk 0:02:37.4]}
8... Qxd6 {[%clk 0:02:52.9]} 9. Ne5 {[%clk 0:02:37.1]} 9... b6 {[%clk
0:02:48.6]} 10. f4 {[%clk 0:02:33]} 10... Ba6 {[%clk 0:02:48.5]} 11. Bc2 {[%clk
0:02:33.1]} 11... Nc6 {[%clk 0:02:46.2]} 12. Qf3 {[%clk 0:02:31.2]} 12... Rac8
{[%clk 0:02:45.7]} 13. Rc1 {[%clk 0:02:25.5]} 13... b5 {[%clk 0:02:40.5]} 14. g4
{[%clk 0:02:22.2]} 14... b4 {[%clk 0:02:36.1]} 15. Rg1 {[%clk 0:01:40.6]} 15...
bxc3 {[%clk 0:02:34.6]} 16. bxc3 {[%clk 0:01:40.4]} 16... cxd4 {[%clk 0:02:35]}
17. exd4 {[%clk 0:01:40.9]} 17... Qa3 {[%clk 0:02:30.1]} 18. Rg3 {[%clk
0:01:39.4]} 18... Qxc1+ {[%clk 0:02:28.8]} 19. Bd1 {[%clk 0:01:38]} 19... Nxe5
{[%clk 0:02:25.8]} 20. fxe5 {[%clk 0:01:36.2]} 20... Ne4 {[%clk 0:02:26.3]} 0-1

[Event "Early-Titled-Tuesday-Blitz-February-06-2024"]
[Site "Chess.com"]
[Date "2024.02.06"]
[Round "9"]
[White "toninhojit"]
[Black "Maitreia"]
[Result "0-1"]
[WhiteElo "2540"]
[BlackElo "2763"]
[TimeControl "180+1"]
[EndTime "9:40:50 PST"]
[Termination "Maitreia won by resignation"]

1. d4 {[%clk 0:03:00.9]} 1... Nf6 {[%clk 0:02:56.7]} 2. c4 {[%clk 0:03:01.2]}
2... e5 {[%clk 0:02:56.2]} 3. dxe5 {[%clk 0:03:00.8]} 3... Ng4 {[%clk
0:02:56.3]} 4. Nf3 {[%clk 0:02:59.6]} 4... Bc5 {[%clk 0:02:56.7]} 5. e3 {[%clk
0:03:00]} 5... Nc6 {[%clk 0:02:57.1]} 6. Be2 {[%clk 0:03:00]} 6... O-O {[%clk
0:02:57.2]} 7. O-O {[%clk 0:03:00.6]} 7... Re8 {[%clk 0:02:57.8]} 8. b3 {[%clk
0:02:58.7]} 8... Ngxe5 {[%clk 0:02:57.8]} 9. Bb2 {[%clk 0:02:58]} 9... a5 {[%clk
0:02:56.8]} 10. Nbd2 {[%clk 0:02:55.6]} 10... Ra6 {[%clk 0:02:49.3]} 11. Nxe5
{[%clk 0:02:53.6]} 11... Nxe5 {[%clk 0:02:49.3]} 12. Nf3 {[%clk 0:02:54.3]}
12... Nxf3+ {[%clk 0:02:42.2]} 13. Bxf3 {[%clk 0:02:55.2]} 13... Rh6 {[%clk
0:02:36.8]} 14. Qd2 {[%clk 0:02:45.3]} 14... d6 {[%clk 0:02:35.1]} 15. a3 {[%clk
0:02:45.9]} 15... Qh4 {[%clk 0:02:32.9]} 16. h3 {[%clk 0:02:35.5]} 16... Bxh3
{[%clk 0:02:32.7]} 17. Qc3 {[%clk 0:02:08]} 17... Re5 {[%clk 0:02:26.9]} 18. g3
{[%clk 0:01:53.6]} 18... Rg6 {[%clk 0:02:26.3]} 19. Bg2 {[%clk 0:01:48.8]} 19...
Rxg3 {[%clk 0:02:17.1]} 20. fxg3 {[%clk 0:01:32.4]} 20... Qxg3 {[%clk 0:02:18]}
21. Qc2 {[%clk 0:01:21.3]} 21... Bxe3+ {[%clk 0:02:15.1]} 22. Kh1 {[%clk
0:01:21.3]} 22... Bxg2+ {[%clk 0:02:14.7]} 0-1

[Event "Early-Titled-Tuesday-Blitz-February-06-2024"]
[Site "Chess.com"]
[Date "2024.02.06"]
[Round "9"]
[White "jefferyx"]
[Black "xamax2000"]
[Result "0-1"]
[WhiteElo "2991"]
[BlackElo "2871"]
[TimeControl "180+1"]
[EndTime "9:40:53 PST"]
[Termination "xamax2000 won by resignation"]

1. d4 {[%clk 0:03:00.9]} 1... d5 {[%clk 0:03:00.1]} 2. c4 {[%clk 0:03:01.2]}
2... e6 {[%clk 0:03:00.1]} 3. Nf3 {[%clk 0:03:01.3]} 3... Nf6 {[%clk 0:03:00.1]}
4. Nc3 {[%clk 0:03:00.8]} 4... c5 {[%clk 0:03:00.7]} 5. e3 {[%clk 0:02:58.4]}
5... a6 {[%clk 0:03:00.9]} 6. cxd5 {[%clk 0:02:55.4]} 6... exd5 {[%clk
0:03:01.8]} 7. dxc5 {[%clk 0:02:35.7]} 7... Bxc5 {[%clk 0:03:01.4]} 8. Be2
{[%clk 0:02:36.4]} 8... Nc6 {[%clk 0:03:01.4]} 9. O-O {[%clk 0:02:36.8]} 9...
O-O {[%clk 0:03:01.8]} 10. Nd4 {[%clk 0:02:31]} 10... Nxd4 {[%clk 0:02:50.2]}
11. exd4 {[%clk 0:02:31]} 11... Ba7 {[%clk 0:02:44.6]} 12. Bg5 {[%clk
0:02:27.1]} 12... Be6 {[%clk 0:02:43.1]} 13. Bf3 {[%clk 0:02:26.4]} 13... h6
{[%clk 0:02:43.1]} 14. Bh4 {[%clk 0:02:24.6]} 14... Rc8 {[%clk 0:02:36]} 15. Rc1
{[%clk 0:01:41.4]} 15... Rc4 {[%clk 0:02:28.9]} 16. Bxf6 {[%clk 0:01:30.4]}
16... Qxf6 {[%clk 0:02:26.4]} 17. Nxd5 {[%clk 0:01:14.9]} 17... Bxd5 {[%clk
0:02:26.1]} 18. Bxd5 {[%clk 0:01:15.8]} 18... Rxd4 {[%clk 0:02:26.6]} 19. Qb3
{[%clk 0:01:00.2]} 19... Rd2 {[%clk 0:02:22.5]} 20. Rc2 {[%clk 0:01:00.3]} 20...
Qxf2+ {[%clk 0:02:19.3]} 0-1

[Event "Early-Titled-Tuesday-Blitz-February-06-2024"]
[Site "Chess.com"]
[Date "2024.02.06"]
[Round "9"]
[White "CSB7"]
[Black "ri4mi"]
[Result "1-0"]
[WhiteElo "2733"]
[BlackElo "2555"]
[TimeControl "180+1"]
[EndTime "9:40:56 PST"]
[Termination "CSB7 won by resignation"]

1. c4 {[%clk 0:03:00.9]} 1... e6 {[%clk 0:02:59.9]} 2. Nc3 {[%clk 0:02:58.9]}
2... d5 {[%clk 0:03:00.8]} 3. e3 {[%clk 0:02:52.4]} 3... c6 {[%clk 0:03:01]} 4.
Nf3 {[%clk 0:02:51]} 4... f5 {[%clk 0:03:01]} 5. Be2 {[%clk 0:02:40.9]} 5... Nf6
{[%clk 0:03:01.1]} 6. O-O {[%clk 0:02:41.4]} 6... Bd6 {[%clk 0:03:01.2]} 7. d3
{[%clk 0:02:41.7]} 7... e5 {[%clk 0:02:57.2]} 8. cxd5 {[%clk 0:02:32]} 8... cxd5
{[%clk 0:02:58.1]} 9. Qb3 {[%clk 0:02:17.4]} 9... Bc7 {[%clk 0:02:06]} 10. e4
{[%clk 0:01:58.3]} 10... fxe4 {[%clk 0:01:56.9]} 11. dxe4 {[%clk 0:01:56.4]}
11... O-O {[%clk 0:01:34.9]} 12. Bg5 {[%clk 0:01:48.9]} 12... h6 {[%clk
0:01:28.2]} 13. Bxf6 {[%clk 0:01:46.6]} 13... Qxf6 {[%clk 0:01:26.7]} 14. Nxd5
{[%clk 0:01:46.6]} 1-0

[Event "Early-Titled-Tuesday-Blitz-February-06-2024"]
[Site "Chess.com"]
[Date "2024.02.06"]
[Round "9"]
[White "Narek_Ghimoyan"]
[Black "Let_it_be_1"]
[Result "0-1"]
[WhiteElo "2419"]
[BlackElo "2582"]
[TimeControl "180+1"]
[EndTime "9:41:15 PST"]
[Termination "Let_it_be_1 won by resignation"]

1. d4 {[%clk 0:03:00.9]} 1... d5 {[%clk 0:02:45.3]} 2. c4 {[%clk 0:02:58.6]}
2... e6 {[%clk 0:02:42.1]} 3. Nc3 {[%clk 0:02:55.7]} 3... Be7 {[%clk 0:02:41.9]}
4. Nf3 {[%clk 0:02:55.4]} 4... Nf6 {[%clk 0:02:41.8]} 5. Bf4 {[%clk 0:02:54.8]}
5... O-O {[%clk 0:02:41.5]} 6. e3 {[%clk 0:02:54.5]} 6... Nbd7 {[%clk
0:02:40.9]} 7. Qc2 {[%clk 0:02:49.4]} 7... c5 {[%clk 0:02:40.2]} 8. dxc5 {[%clk
0:02:47.5]} 8... Nxc5 {[%clk 0:02:40]} 9. Rd1 {[%clk 0:02:46.7]} 9... Qa5 {[%clk
0:02:40]} 10. Be2 {[%clk 0:02:45.9]} 10... Nce4 {[%clk 0:02:36.1]} 11. O-O
{[%clk 0:02:43.3]} 11... Nxc3 {[%clk 0:02:29.9]} 12. bxc3 {[%clk 0:02:44.2]}
12... Bd7 {[%clk 0:02:27.9]} 13. Ne5 {[%clk 0:02:39]} 13... Ba4 {[%clk
0:02:27.6]} 14. Qb2 {[%clk 0:02:32.3]} 14... Bxd1 {[%clk 0:02:23.1]} 15. Rxd1
{[%clk 0:02:33.2]} 15... Ne4 {[%clk 0:02:08.1]} 16. cxd5 {[%clk 0:02:23]} 16...
Nxc3 {[%clk 0:01:57.3]} 17. Re1 {[%clk 0:02:17.7]} 17... Nxd5 {[%clk 0:01:49.4]}
18. Rf1 {[%clk 0:02:11.8]} 18... Bf6 {[%clk 0:01:33.7]} 19. Qxb7 {[%clk
0:02:06.4]} 19... Nc3 {[%clk 0:01:23.9]} 20. Bf3 {[%clk 0:01:49.1]} 20... Bxe5
{[%clk 0:01:21.2]} 0-1